bitfinex/quotes_ETHUSD_20250930
["timestamp","ask_amount","ask_price","bid_price","bid_amount"]
[1759236324287,2.39408875,4178.7,4178.6,0.24190001]
[1759236324511,2.39408875,4178.7,4178.6,0.71100001]
[1759236324698,2.39408875,4178.7,4178.6,15.21100001]
[1759236326731,2.39408875,4178.7,4178.6,14.74190001]
[1759236328342,2.39408875,4178.7,4178.6,14.50000001]
[1759236328803,2.39408875,4178.7,4178.6,1e-08]
[1759236329005,3.69795305,4178.7,4178.6,1e-08]
[1759236329201,2.39408875,4178.7,4178.6,1e-08]
[1759236332644,2.62108875,4178.7,4178.6,1e-08]
[1759236333139,3.05798875,4178.7,4178.6,1e-08]
[1759236333807,3.17798875,4178.7,4178.6,1e-08]
[1759236334538,5.57798875,4178.7,4178.6,1e-08]
[1759236334710,7.01950487,4178.7,4178.6,1e-08]
[1759236336852,7.24650487,4178.7,4178.6,1e-08]
[1759236337061,7.68340487,4178.7,4178.6,1e-08]
[1759236341660,7.01950487,4178.7,4178.6,1e-08]
[1759236342161,12.35485083,4178.7,4178.6,1e-08]
[1759236343364,12.35685083,4178.7,4178.6,1e-08]
[1759236345247,11.91795083,4178.7,4178.6,1e-08]
[1759236345452,7.01950487,4178.7,4178.6,1e-08]
[1759236345655,9.23516411,4178.7,4178.6,1e-08]
[1759236345853,9.75173507,4178.7,4178.6,1e-08]
[1759236346476,9.75173507,4178.7,4178.6,0.67330001]
[1759236346477,7.01973507,4178.7,4178.6,0.67330001]
[1759236346683,7.64608875,4178.7,4178.6,0.67330001]
[1759236346883,8.16265971,4178.7,4178.6,0.23690001]
[1759236347084,8.16265971,4178.7,4178.6,1e-08]
[1759236353266,8.85035971,4178.7,4178.6,1e-08]
[1759236355180,8.16265971,4178.7,4178.6,1e-08]
[1759236355492,6.95336809,4178.7,4178.6,1e-08]
[1759236355809,6.95336809,4178.7,4178.6,0.67330001]
[1759236356506,6.95336809,4178.7,4178.6,1e-08]
[1759236357195,6.95336809,4178.7,4178.6,0.67330001]
[1759236357763,9.68536809,4178.7,4178.6,0.23690001]
[1759236357993,9.68536809,4178.7,4178.6,0.00200001]
[1759236358197,9.68536809,4178.7,4178.6,0.23890001]
[1759236358566,9.68536809,4178.7,4178.6,0.67530001]
[1759236359269,6.95336809,4178.7,4178.6,0.67530001]
[1759236359481,9.68536809,4178.7,4178.6,0.67530001]
[1759236359868,9.68536809,4178.7,4178.6,0.23890001]
[1759236360073,9.68536809,4178.7,4178.6,0.00200001]
[1759236360467,9.68436809,4178.7,4178.6,0.00200001]
[1759236361395,6.95336809,4178.7,4178.6,0.00200001]
[1759236361621,9.68436809,4178.7,4178.6,0.00200001]
[1759236361798,6.95336809,4178.7,4178.6,0.00200001]
[1759236362100,9.68436809,4178.7,4178.6,0.00200001]
[1759236364499,6.95336809,4178.7,4178.6,0.00200001]
[1759236364697,9.68436809,4178.7,4178.6,0.00200001]
[1759236365199,15.04351405,4178.7,4178.6,0.00200001]
[1759236367714,14.35581405,4178.7,4178.6,0.00200001]
[1759236368312,14.60461405,4178.7,4178.6,0.00200001]
[1759236368515,15.04351405,4178.7,4178.6,0.00200001]
[1759236369318,14.45181362,4178.7,4178.6,0.00200001]
[1759236369798,15.13951362,4178.7,4178.6,0.00200001]
[1759236370800,14.45181362,4178.7,4178.6,0.00200001]
[1759236371720,15.13951362,4178.7,4178.6,0.00200001]
[1759236374226,10.46806766,4178.7,4178.6,0.00200001]
[1759236374421,15.87836964,4178.7,4178.6,0.00200001]
[1759236377495,15.19066964,4178.7,4178.6,0.00200001]
[1759236379530,6.95336809,4178.7,4178.6,0.00200001]
[1759236379729,9.68436809,4178.7,4178.6,0.69950001]
[1759236380226,9.68436809,4178.7,4178.6,0.00200001]
[1759236380641,10.38336809,4178.7,4178.6,0.00200001]
[1759236383426,10.62366809,4178.7,4178.6,0.00200001]
[1759236383937,9.92466809,4178.7,4178.6,0.00200001]
[1759236384537,7.19366809,4178.7,4178.6,0.00200001]
[1759236384737,7.19366809,4178.7,4178.6,0.69950001]
[1759236384941,9.68436809,4178.7,4178.6,0.69950001]
[1759236385342,6.95336809,4178.7,4178.6,0.24030001]
[1759236385538,9.68436809,4178.7,4178.6,0.69950001]
[1759236385945,9.68436809,4178.7,4178.6,0.00200001]
[1759236386338,15.55887007,4178.7,4178.6,0.00200001]
[1759236386543,15.79367007,4178.7,4178.6,0.00200001]
[1759236389258,15.79422253,4178.7,4178.6,0.00200001]
[1759236390660,16.03252254,4178.7,4178.6,0.00200001]
[1759236391359,15.33352254,4178.7,4178.6,0.00200001]
[1759236391552,17.32356626,4178.7,4178.6,0.00200001]
[1759236392957,16.62456626,4178.7,4178.6,0.00200001]
[1759236393661,9.92322056,4178.7,4178.6,0.24030001]
[1759236393868,7.19222056,4178.7,4178.6,0.69950001]
[1759236394166,9.92322056,4178.7,4178.6,0.69950001]
[1759236395679,7.19222056,4178.7,4178.6,0.69950001]
[1759236395884,9.92322056,4178.7,4178.6,0.69950001]
[1759236396785,9.92322056,4178.7,4178.6,0.00200001]
[1759236397084,9.92322056,4178.7,4178.6,0.24030001]
[1759236398353,9.92322056,4178.7,4178.6,0.69950001]
[1759236402661,7.19222056,4178.7,4178.6,0.69950001]
[1759236402871,8.39951218,4178.7,4178.6,0.69950001]
[1759236403276,8.39951218,4178.7,4178.6,15.19950001]
[1759236406395,8.39951218,4178.7,4178.6,0.69950001]
[1759236406862,8.39951218,4178.7,4178.6,15.19950001]
[1759236408493,8.39951218,4178.7,4178.6,14.50200001]
[1759236408687,8.39951218,4178.7,4178.6,15.17110001]
[1759236410182,8.39951218,4178.7,4178.6,0.67110001]
[1759236410588,8.39951218,4178.7,4178.6,15.17110001]
[1759236411807,8.39951218,4178.7,4178.6,14.73210001]
[1759236413005,8.39951218,4178.7,4178.6,14.50200001]
[1759236416516,8.39951218,4178.7,4178.6,0.00200001]
[1759236421941,8.63701218,4178.7,4178.6,0.00200001]
[1759236422300,8.39951218,4178.7,4178.6,0.00200001]
[1759236432050,8.63701218,4178.7,4178.6,0.00200001]
[1759236432262,10.15686121,4178.7,4178.6,0.00200001]
[1759236432426,9.71626121,4178.7,4178.6,0.00200001]
[1759236432627,9.47876121,4178.7,4178.6,0.00200001]
[1759236434632,15.59316319,4178.7,4178.6,0.00200001]
[1759236434832,6.74876121,4178.7,4178.6,0.00200001]
[1759236435032,9.47776121,4178.7,4178.6,0.25090001]
[1759236435237,9.47776121,4178.7,4178.6,0.68310001]
[1759236436865,9.47776121,4178.7,4178.6,0.25090001]
[1759236437522,9.47776121,4178.7,4178.6,0.00200001]
[1759236440166,9.70826121,4178.7,4178.6,0.00200001]
[1759236441254,9.47776121,4178.7,4178.6,0.00200001]
[1759236443170,10.13796121,4178.7,4178.6,0.00200001]
[1759236449804,14.15107756,4178.7,4178.6,0.00200001]
[1759236449960,14.38157756,4178.7,4178.6,0.00200001]
[1759236450503,14.81127756,4178.7,4178.6,0.00200001]
[1759236451064,14.15107756,4178.7,4178.6,0.00200001]
[1759236451264,11.42207756,4178.7,4178.6,0.00200001]
[1759236451499,14.15007756,4178.7,4178.6,0.00200001]
[1759236451674,11.65257756,4178.7,4178.6,0.00200001]
[1759236451860,14.38057756,4178.7,4178.6,0.00200001]
[1759236453990,14.81027756,4178.7,4178.6,0.00200001]
[1759236454393,12.08227756,4178.7,4178.6,0.00200001]
[1759236454610,14.81027756,4178.7,4178.6,0.00200001]
[1759236454761,14.38057756,4178.7,4178.6,0.00200001]
[1759236455735,14.81027756,4178.7,4178.6,0.00200001]
[1759236459241,14.38057756,4178.7,4178.6,0.00200001]
[1759236460534,14.81027756,4178.7,4178.6,0.00200001]
[1759236462670,14.38057756,4178.7,4178.6,0.00200001]
[1759236463626,16.11992128,4178.7,4178.6,0.00200001]
[1759236464034,14.82887756,4178.7,4178.6,0.00200001]
[1759236469579,14.15007756,4178.7,4178.6,0.00200001]
[1759236469771,14.83857756,4178.7,4178.6,0.00200001]
[1759236473148,2.39337513,4178.2,4178.1,1e-08]
[1759236473346,10.91048278,4178.2,4178.1,1e-08]
[1759236473644,10.91048278,4178.2,4178.1,0.23480001]
[1759236473861,11.34378278,4178.2,4178.1,0.23480001]
[1759236475390,11.34378278,4178.2,4178.1,1e-08]
[1759236478276,11.34378278,4178.2,4178.1,0.23480001]
[1759236479301,11.34378278,4178.2,4178.1,1e-08]
[1759236480603,13.74378278,4178.2,4178.1,1e-08]
[1759236481098,13.98398278,4178.2,4178.1,1e-08]
[1759236482873,14.43228278,4178.2,4178.1,1e-08]
[1759236484106,15.72546414,4178.2,4178.1,1e-08]
[1759236484603,14.43228278,4178.2,4178.1,1e-08]
[1759236486816,14.43228278,4178.2,4177.7,0.002]
[1759236486817,2.39360428,4177.8,4177.7,1e-08]
[1759236486979,12.83104405,4177.8,4177.7,1e-08]
[1759236487705,13.06784405,4177.8,4177.7,1e-08]
[1759236488086,13.30804405,4177.8,4177.7,1e-08]
[1759236489009,13.06784405,4177.8,4177.7,1e-08]
[1759236489315,14.36311848,4177.8,4177.7,1e-08]
[1759236489525,14.60331848,4177.8,4177.7,1e-08]
[1759236490115,14.36311848,4177.8,4177.7,1e-08]
[1759236492015,14.60331848,4177.8,4177.7,1e-08]
[1759236492318,14.60331848,4177.8,4177.2,0.4353]
[1759236492319,2.39389079,4177.3,4177.2,0.002]
[1759236492486,12.83133056,4177.3,4177.2,0.002]
[1759236493101,13.30493056,4177.3,4177.2,0.002]
[1759236494623,13.30493056,4177.3,4177.2,0.705]
[1759236495808,13.30493056,4177.3,4177.2,0.4756]
[1759236495992,13.78359844,4177.3,4177.2,0.002]
[1759236496190,9.11028209,4177.3,4177.2,0.002]
[1759236500790,6.38328209,4177.3,4177.2,0.002]
[1759236500999,9.11028209,4177.3,4177.2,0.002]
[1759236505427,2.39417736,4176.8,4176.7,0.002]
[1759236505634,7.64117736,4176.8,4176.7,0.002]
[1759236505830,8.15830078,4176.8,4176.7,0.6907]
[1759236506230,8.84900078,4176.8,4176.7,0.6907]
[1759236506628,8.84800078,4176.8,4176.7,0.4409]
[1759236506807,8.84800078,4176.8,4176.7,0.6907]
[1759236507406,8.84800078,4176.8,4176.7,0.002]
[1759236507928,10.26298611,4176.8,4176.7,0.002]
[1759236509316,10.50518611,4176.8,4176.7,0.002]
[1759236510830,10.26298611,4176.8,4176.7,0.002]
[1759236512146,7.53698611,4176.8,4176.7,0.002]
[1759236512455,10.26298611,4176.8,4176.7,0.002]
[1759236516448,10.50518611,4176.8,4176.7,0.002]
[1759236516652,10.94248611,4176.8,4176.7,0.002]
[1759236518815,12.23550267,4176.8,4176.7,0.002]
[1759236519550,2.394292,4176.6,4176.5,1e-08]
[1759236519855,14.52961642,4176.6,4176.5,1e-08]
[1759236520053,14.77181642,4176.6,4176.5,1e-08]
[1759236520356,15.46051642,4176.6,4176.5,1e-08]
[1759236522152,15.89781642,4176.6,4176.5,1e-08]
[1759236523190,15.46051642,4176.6,4176.5,1e-08]
[1759236523953,16.75353298,4176.6,4176.5,1e-08]
[1759236524977,16.51133298,4176.6,4176.5,1e-08]
[1759236525139,10.20753064,4176.1,4176.0,1e-08]
[1759236525336,13.57065406,4176.1,4176.0,1e-08]
[1759236525639,13.80415406,4176.1,4176.0,1e-08]
[1759236525846,13.9002168,4176.1,4176.0,1e-08]
[1759236526051,13.6667168,4176.1,4176.0,1e-08]
[1759236526258,15.34927544,4176.1,4176.0,1e-08]
[1759236529466,12.62327544,4176.1,4176.0,1e-08]
[1759236529672,15.34927544,4176.1,4176.0,1e-08]
[1759236535456,12.62327544,4176.1,4176.0,1e-08]
[1759236535662,8.25376483,4176.1,4176.0,0.69820001]
[1759236539592,8.25355187,4176.1,4176.0,0.69820001]
[1759236541077,8.25355187,4176.1,4176.0,0.46020001]
[1759236541473,8.25355187,4176.1,4176.0,1e-08]
[1759236542091,8.48705187,4176.1,4176.0,1e-08]
[1759236542301,10.24572686,4176.1,4176.0,1e-08]
[1759236542870,10.68492686,4176.1,4176.0,1e-08]
[1759236543377,15.65867883,4176.1,4176.0,1e-08]
[1759236543800,16.09787883,4176.1,4176.0,1e-08]
[1759236545478,16.95147114,4176.1,4176.0,1e-08]
[1759236546292,17.39067114,4176.1,4176.0,1e-08]
[1759236546692,16.09787883,4176.1,4176.0,1e-08]
[1759236547092,16.09887883,4176.1,4176.0,1e-08]
[1759236547977,2.3948654,4175.6,4175.5,0.002]
[1759236548172,13.68921437,4175.6,4175.5,0.002]
[1759236548378,13.80921437,4175.6,4175.5,0.002]
[1759236548605,14.04271437,4175.6,4175.5,0.002]
[1759236549170,13.80921437,4175.6,4175.5,0.002]
[1759236549396,13.9052905,4175.6,4175.5,0.002]
[1759236549623,11.1802905,4175.6,4175.5,0.002]
[1759236549830,13.9052905,4175.6,4175.5,0.7002]
[1759236550030,5.76733853,4175.6,4175.5,0.7002]
[1759236550234,8.49233853,4175.6,4175.5,0.7002]
[1759236550799,8.49233853,4175.6,4175.5,0.002]
[1759236552739,5.76733853,4175.6,4175.5,0.002]
[1759236552941,8.49233853,4175.6,4175.5,0.4714]
[1759236553142,5.76733853,4175.6,4175.5,0.7189]
[1759236553520,8.49233853,4175.6,4175.5,0.7189]
[1759236553920,5.52785199,4175.6,4175.5,0.7189]
[1759236554118,8.25285199,4175.6,4175.5,0.7189]
[1759236555208,8.25285199,4175.6,4175.5,0.002]
[1759236555637,5.52785199,4175.6,4175.5,0.4714]
[1759236555848,8.25285199,4175.6,4175.5,0.7189]
[1759236556051,8.25285199,4175.6,4175.5,0.4714]
[1759236557447,8.25285199,4175.6,4175.5,0.002]
[1759236557642,9.78572642,4175.6,4175.5,0.002]
[1759236557843,10.03252642,4175.6,4175.5,0.002]
[1759236558247,7.06072642,4175.6,4175.5,0.002]
[1759236558419,9.78572642,4175.6,4175.5,0.6698]
[1759236558748,9.78572642,4175.6,4175.5,0.002]
[1759236562183,9.78572642,4175.6,4175.0,0.002]
[1759236562184,2.39520958,4175.0,4173.8,0.4286]
[1759236562405,2.39520958,4175.0,4170.9,4.47840789]
[1759236562406,15.14411016,4175.0,4170.9,1.95140789]
[1759236562539,4.68109985,4172.8,4172.4,0.6678]
[1759236562740,2.725,4172.7,4172.5,15.1678]
[1759236562940,2.725,4172.7,4172.6,0.6678]
[1759236563176,0.51691046,4173.0,4172.6,2.18458]
[1759236563343,7.07642622,4174.8,4172.6,2.18458]
[1759236563344,2.39617543,4173.4,4172.7,0.6678]
[1759236563542,2.725,4173.3,4172.8,0.69176472]
[1759236563770,5.12118691,4173.3,4172.8,0.69176472]
[1759236563941,2.3962619,4173.2,4172.9,0.88865447]
[1759236564271,5.84197143,4173.3,4173.0,0.6678]
[1759236564576,5.84197143,4173.3,4173.1,0.6678]
[1759236564771,3.44578219,4173.3,4173.2,0.6678]
[1759236564965,5.84196746,4173.3,4173.2,0.6678]
[1759236565362,3.44578219,4173.3,4173.2,0.6678]
[1759236565568,5.84196746,4173.3,4173.2,0.6678]
[1759236566449,5.84196746,4173.3,4173.2,15.1678]
[1759236569085,5.84196746,4173.3,4173.2,14.5]
[1759236569287,5.84196746,4173.3,4173.2,15.1678]
[1759236570287,3.44578219,4173.3,4173.2,16.68458]
[1759236570460,3.44578219,4173.3,4173.2,15.1678]
[1759236570662,7.479649,4173.3,4173.2,15.1678]
[1759236571062,4.754649,4173.3,4173.2,15.9598]
[1759236572198,4.754649,4173.3,4173.2,16.0798]
[1759236574568,4.754649,4173.3,4173.2,15.412]
[1759236574902,7.15083427,4173.3,4173.2,15.1678]
[1759236576969,9.87583427,4173.3,4173.2,15.1678]
[1759236577785,9.87583427,4173.3,4173.2,0.6678]
[1759236578301,9.87583427,4173.3,4173.2,15.1678]
[1759236578796,9.87583427,4173.3,4173.2,14.5]
[1759236579571,7.479649,4173.3,4172.9,0.792]
[1759236579769,7.479649,4173.3,4173.2,0.6678]
[1759236580089,7.479649,4173.3,4173.2,15.1678]
[1759236580280,9.87583427,4173.3,4173.2,15.1678]
[1759236581076,4.754649,4173.3,4173.2,17.55578]
[1759236587211,4.754649,4173.3,4173.2,15.9598]
[1759236587508,7.15083427,4173.3,4173.2,15.292]
[1759236587703,7.15083427,4173.3,4173.2,18.686]
[1759236587704,4.754649,4173.3,4173.2,18.686]
[1759236589816,4.754649,4173.3,4173.2,15.292]
[1759236590508,4.754649,4173.3,4173.2,15.961]
[1759236590712,4.754649,4173.3,4173.2,17.8418]
[1759236591317,4.754649,4173.3,4173.2,17.9618]
[1759236594496,4.754649,4173.3,4173.2,17.2928]
[1759236594824,4.754649,4173.3,4173.2,17.7316]
[1759236594995,4.754649,4173.3,4173.2,17.9618]
[1759236596231,4.754649,4173.3,4173.2,20.35804269]
[1759236596408,4.754649,4173.3,4173.2,20.23804269]
[1759236597340,4.754649,4173.3,4173.2,17.8418]
[1759236597525,4.754649,4173.3,4173.2,17.6116]
[1759236597829,4.754649,4173.3,4173.2,25.01769985]
[1759236598531,4.754649,4173.3,4173.2,25.24789985]
[1759236599603,4.754649,4173.3,4173.2,22.29269985]
[1759236599802,4.754649,4173.3,4173.2,25.01769985]
[1759236600410,4.754649,4173.3,4173.2,32.32524239]
[1759236600615,4.754649,4173.3,4173.2,34.72524239]
[1759236602903,4.754649,4173.3,4173.2,30.04414254]
[1759236603935,4.754649,4173.3,4173.2,34.72524239]
[1759236605415,4.754649,4173.3,4173.2,30.04414254]
[1759236606357,4.754649,4173.3,4173.2,30.16414254]
[1759236607259,4.754649,4173.3,4173.2,25.48304269]
[1759236607428,4.754649,4173.3,4173.2,29.93394254]
[1759236607828,4.754649,4173.3,4173.2,27.53394254]
[1759236608028,4.754649,4173.3,4173.2,27.76414254]
[1759236608229,4.754649,4173.3,4173.2,27.53394254]
[1759236608732,4.754649,4173.3,4173.2,27.76414254]
[1759236610960,4.754649,4173.3,4173.2,22.41404269]
[1759236612346,4.754649,4173.3,4173.2,20.0178]
[1759236612862,4.754649,4173.3,4173.2,22.41404269]
[1759236613761,4.754649,4173.3,4173.2,18.137]
[1759236613959,5.000849,4173.3,4173.2,18.137]
[1759236614365,5.464949,4173.3,4173.2,18.137]
[1759236614572,5.000849,4173.3,4173.2,18.137]
[1759236614743,4.754649,4173.3,4173.2,20.53324269]
[1759236616449,4.754649,4173.3,4173.2,23.50790784]
[1759236616860,4.754649,4173.3,4173.2,15.412]
[1759236617061,4.997549,4173.3,4173.2,18.136]
[1759236617661,4.754649,4173.3,4173.2,18.136]
[1759236619077,4.997549,4173.3,4173.2,18.136]
[1759236619446,5.430749,4173.3,4173.2,18.136]
[1759236621202,4.754649,4173.3,4173.2,18.136]
[1759236621572,4.997549,4173.3,4173.2,18.136]
[1759236622303,4.754649,4173.3,4173.2,18.136]
[1759236622466,4.754649,4173.3,4173.2,20.75094052]
[1759236622667,4.754649,4173.3,4173.2,23.14718321]
[1759236623363,4.754649,4173.3,4173.2,22.91378321]
[1759236623673,4.754649,4173.3,4173.2,15.292]
[1759236623877,5.430749,4173.3,4173.2,18.017]
[1759236625384,4.997549,4173.3,4173.2,18.017]
[1759236628016,5.430749,4173.3,4173.2,18.017]
[1759236630479,4.997549,4173.3,4173.2,18.017]
[1759236631913,5.430749,4173.3,4173.2,18.017]
[1759236632483,5.430749,4173.3,4173.2,18.137]
[1759236634012,4.997549,4173.3,4173.2,18.137]
[1759236634714,5.430749,4173.3,4173.2,18.137]
[1759236634911,7.82693427,4173.3,4173.2,15.412]
[1759236635216,9.88211118,4173.3,4173.2,15.412]
[1759236635935,9.88211118,4173.3,4173.2,15.292]
[1759236636748,9.88211118,4173.3,4173.2,14.5]
[1759236636952,2.39624269,4173.2,4173.1,0.002]
[1759236637175,8.0359406,4173.2,4173.1,0.002]
[1759236637442,8.8320406,4173.2,4173.1,0.002]
[1759236639708,11.2320406,4173.2,4173.1,0.002]
[1759236639912,11.3512136,4173.2,4173.1,0.002]
[1759236640417,11.44733128,4173.2,4173.1,0.002]
[1759236641221,11.32815828,4173.2,4173.1,0.002]
[1759236641412,5.52975285,4173.2,4173.1,0.002]
[1759236641749,5.24124269,4173.2,4173.1,0.002]
[1759236642322,7.15084572,4173.3,4173.1,0.002]
[1759236642657,5.12124269,4173.2,4173.1,0.002]
[1759236643938,5.12224269,4173.2,4173.1,0.002]
[1759236644141,5.35484269,4173.2,4173.1,0.002]
[1759236644314,5.91944269,4173.2,4173.1,0.002]
[1759236644510,7.72540541,4173.2,4173.1,0.002]
[1759236644712,8.17000541,4173.2,4173.1,0.002]
[1759236646122,10.57000541,4173.2,4173.1,0.002]
[1759236646346,11.08683073,4173.2,4173.1,0.002]
[1759236650757,11.80768566,4173.2,4173.1,0.002]
[1759236651920,11.36308566,4173.2,4173.1,0.002]
[1759236652256,10.40963073,4173.2,4173.1,0.002]
[1759236652961,7.68363073,4173.2,4173.1,0.002]
[1759236653161,10.40963073,4173.2,4173.1,0.002]
[1759236654246,5.43306801,4173.2,4173.1,0.002]
[1759236654453,8.15906801,4173.2,4173.1,0.002]
[1759236656665,5.43306801,4173.2,4173.1,0.002]
[1759236656874,8.15906801,4173.2,4173.1,15.294]
[1759236657647,5.43306801,4173.2,4173.1,15.294]
[1759236657843,5.75806801,4173.2,4173.1,15.294]
[1759236658046,0.12,4173.2,4173.1,15.294]
[1759236658360,7.479649,4173.3,4173.2,0.792]
[1759236658562,4.754649,4173.3,4173.2,1.505]
[1759236658867,4.754649,4173.3,4173.2,1.625]
[1759236659248,7.15083427,4173.3,4173.2,0.912]
[1759236659456,7.15083427,4173.3,4173.2,0.792]
[1759236659629,7.15083427,4173.3,4173.2,1.2599]
[1759236659960,7.15083427,4173.3,4173.2,1.505]
[1759236660341,7.15083427,4173.3,4173.2,0.792]
[1759236660748,7.38343427,4173.3,4173.2,0.792]
[1759236661131,7.6680297,4173.3,4173.2,0.792]
[1759236661460,7.6680297,4173.3,4173.1,0.002]
[1759236661645,7.66803506,4173.3,4173.1,0.002]
[1759236661845,4.754649,4173.3,4173.2,0.792]
[1759236662047,4.754649,4173.3,4173.2,1.505]
[1759236662229,4.754649,4173.3,4173.2,4.3937]
[1759236662771,4.754649,4173.3,4173.2,18.8937]
[1759236664568,4.754649,4173.3,4173.2,15.292]
[1759236666636,7.15083427,4173.3,4173.2,15.292]
[1759236666831,4.754649,4173.3,4173.2,15.292]
[1759236667242,4.987249,4173.3,4173.2,15.292]
[1759236667661,4.987249,4173.3,4173.1,0.794]
[1759236668166,4.987249,4173.3,4173.2,15.292]
[1759236668862,4.754649,4173.3,4173.2,15.292]
[1759236670190,7.15083427,4173.3,4173.2,15.292]
[1759236670396,4.754649,4173.3,4173.2,15.292]
[1759236670916,7.479649,4173.3,4173.2,15.292]
[1759236671203,9.87583427,4173.3,4173.2,15.292]
[1759236671409,7.479649,4173.3,4173.2,15.292]
[1759236671568,10.55303427,4173.3,4173.2,0.792]
[1759236671768,7.712249,4173.3,4173.2,0.792]
[1759236672115,7.479649,4173.3,4173.2,16.005]
[1759236674080,4.754649,4173.3,4173.2,16.005]
[1759236675010,4.754649,4173.3,4173.2,1.505]
[1759236675619,4.754649,4173.3,4173.2,16.0099]
[1759236681102,4.754649,4173.3,4173.2,18.25522962]
[1759236682311,4.754649,4173.3,4173.2,17.53732962]
[1759236682501,4.754649,4173.3,4173.2,18.22832962]
[1759236684317,4.754649,4173.3,4173.2,15.412]
[1759236684496,4.754649,4173.3,4173.2,18.137]
[1759236684695,4.994349,4173.3,4173.2,18.137]
[1759236685615,7.82333427,4173.3,4173.2,18.137]
[1759236686164,5.427149,4173.3,4173.2,18.137]
[1759236686461,4.994349,4173.3,4173.2,18.137]
[1759236687347,7.39053427,4173.3,4173.2,18.137]
[1759236687554,4.994349,4173.3,4173.2,15.412]
[1759236688456,7.82333427,4173.3,4173.2,15.412]
[1759236688656,4.994349,4173.3,4173.2,15.412]
[1759236690123,7.39053427,4173.3,4173.2,15.412]
[1759236690353,4.994349,4173.3,4173.2,15.412]
[1759236691325,7.39053427,4173.3,4173.2,15.412]
[1759236691724,8.34132384,4173.3,4173.2,15.292]
[1759236694254,11.06632384,4173.3,4173.2,15.292]
[1759236694854,15.81256382,4173.3,4173.2,15.292]
[1759236695354,13.46632384,4173.3,4173.2,15.292]
[1759236695555,13.46632384,4173.3,4173.2,0.792]
[1759236695924,13.46632384,4173.3,4173.2,15.292]
[1759236699159,13.46632384,4173.3,4173.2,0.792]
[1759236699560,13.46632384,4173.3,4173.2,15.292]
[1759236701893,13.03352384,4173.3,4173.2,15.292]
[1759236702693,13.03352384,4173.3,4173.2,0.792]
[1759236703283,13.03352384,4173.3,4173.2,15.292]
[1759236706216,13.03352384,4173.3,4173.2,0.792]
[1759236706716,13.03352384,4173.3,4173.2,15.292]
[1759236708814,12.79382384,4173.3,4173.2,15.292]
[1759236708995,13.47662384,4173.3,4173.2,0.792]
[1759236709791,13.03752384,4173.3,4173.2,0.792]
[1759236710914,10.06882384,4173.3,4173.2,0.792]
[1759236711125,10.39763857,4173.3,4173.2,0.792]
[1759236711327,12.79382384,4173.3,4173.2,1.4809]
[1759236712416,10.06882384,4173.3,4173.2,1.4809]
[1759236712603,12.79382384,4173.3,4173.2,1.4809]
[1759236713005,12.79382384,4173.3,4173.2,15.9809]
[1759236713405,10.06882384,4173.3,4173.2,15.9809]
[1759236713901,12.79382384,4173.3,4173.2,15.9809]
[1759236714798,12.79382384,4173.3,4173.2,15.292]
[1759236715199,13.03752384,4173.3,4173.2,15.292]
[1759236715814,13.03745488,4173.3,4173.2,15.292]
[1759236716202,13.03745488,4173.3,4173.2,0.792]
[1759236716700,13.03745488,4173.3,4173.2,15.292]
[1759236717521,10.31245488,4173.3,4173.2,15.292]
[1759236717722,13.03745488,4173.3,4173.2,15.292]
[1759236718423,12.79375488,4173.3,4173.2,15.292]
[1759236718628,10.06875488,4173.3,4173.2,15.292]
[1759236718828,12.79375488,4173.3,4173.2,15.292]
[1759236719022,13.03745488,4173.3,4173.2,15.292]
[1759236719624,10.31245488,4173.3,4173.2,0.792]
[1759236719839,15.36421909,4173.3,4173.2,0.792]
[1759236720217,15.80331909,4173.3,4173.2,0.792]
[1759236720412,15.36421909,4173.3,4173.2,0.792]
[1759236720618,15.36421909,4173.3,4173.1,0.002]
[1759236720619,4.79624269,4173.2,4173.1,0.002]
[1759236720817,7.64314907,4173.2,4173.1,0.002]
[1759236721108,8.32594907,4173.2,4173.1,0.002]
[1759236721519,8.4220619,4173.2,4173.1,0.002]
[1759236728320,11.1470619,4173.2,4173.1,0.002]
[1759236728543,8.4220619,4173.2,4173.1,0.002]
[1759236728725,11.1470619,4173.2,4173.1,0.002]
[1759236731320,8.4220619,4173.2,4173.1,0.002]
[1759236731521,10.4642619,4173.2,4173.1,0.002]
[1759236731943,10.7079619,4173.2,4173.1,0.002]
[1759236732826,11.1513619,4173.2,4173.1,0.002]
[1759236736361,15.83501066,4173.2,4173.1,0.002]
[1759236738361,11.1513619,4173.2,4173.1,0.002]
[1759236740673,10.7079619,4173.2,4173.1,0.002]
[1759236741769,7.9829619,4173.2,4173.1,0.002]
[1759236741985,10.4642619,4173.2,4173.1,0.002]
[1759236742283,11.1581619,4173.2,4173.1,0.002]
[1759236742644,10.7072619,4173.2,4173.1,0.002]
[1759236742988,10.4642619,4173.2,4173.1,0.002]
[1759236743154,10.7072619,4173.2,4173.1,0.002]
[1759236744059,11.1581619,4173.2,4173.1,0.002]
[1759236744448,12.45162703,4173.2,4173.1,0.002]
[1759236745271,11.1581619,4173.2,4173.1,0.002]
[1759236748396,2.39647239,4172.8,4172.7,0.002]
[1759236748594,8.75868029,4172.8,4172.7,0.002]
[1759236748875,9.12168029,4172.8,4172.7,0.002]
[1759236749049,9.84269634,4172.8,4172.7,0.002]
[1759236749254,11.1368327,4172.8,4172.7,0.002]
[1759236749974,10.8938327,4172.8,4172.7,0.002]
[1759236750194,10.89386551,4172.8,4172.7,0.002]
[1759236750543,9.59972915,4172.8,4172.7,0.4578]
[1759236750888,9.59972915,4172.8,4172.7,0.6829]
[1759236751081,6.87472915,4172.8,4172.7,0.4578]
[1759236751295,9.59972915,4172.8,4172.7,0.4578]
[1759236751578,6.87472915,4172.8,4172.7,0.002]
[1759236751958,9.59972915,4172.8,4172.7,0.002]
[1759236754148,6.87472915,4172.8,4172.7,0.6829]
[1759236754349,8.88044186,4172.8,4172.7,1.4749]
[1759236754550,8.15942581,4172.8,4172.7,1.4749]
[1759236755381,5.43442581,4172.8,4172.7,1.4749]
[1759236755586,8.15942581,4172.8,4172.7,1.4749]